bitfinex/quotes_BTCUSD_20250127
["timestamp","ask_amount","ask_price","bid_price","bid_amount"]
[1737984380657,0.148735,100850.0,100840.0,0.22645]
[1737984380789,0.34731858,100860.0,100840.0,0.424783]
[1737984380992,0.29566729,100850.0,100820.0,0.323459]
[1737984381246,0.148765,100830.0,100820.0,0.00049325]
[1737984381438,0.41911229,100830.0,100820.0,0.00049325]
[1737984381642,0.34711,100840.0,100820.0,0.14927325]
[1737984381851,0.148765,100830.0,100820.0,0.05013868]
[1737984382052,0.26911229,100830.0,100820.0,0.05013868]
[1737984382219,0.41911229,100830.0,100820.0,0.00049325]
[1737984383407,0.52911229,100830.0,100820.0,0.00049325]
[1737984383627,0.81911229,100830.0,100820.0,0.00049325]
[1737984383833,0.41911229,100830.0,100820.0,0.00049325]
[1737984384344,0.42911229,100830.0,100820.0,0.00049325]
[1737984384703,0.81911229,100830.0,100820.0,0.00049325]
[1737984384905,0.41911229,100830.0,100820.0,0.00049325]
[1737984385910,0.39611229,100830.0,100820.0,0.00049325]
[1737984386351,0.41911229,100830.0,100820.0,0.00049325]
[1737984386552,0.81911229,100830.0,100820.0,0.00049325]
[1737984388174,0.49611229,100830.0,100820.0,0.00049325]
[1737984388685,0.51911229,100830.0,100820.0,0.00049325]
[1737984388892,0.19734729,100830.0,100820.0,0.14927325]
[1737984389389,0.1,100830.0,100820.0,0.14927325]
[1737984391258,0.1,100830.0,100820.0,0.4176123]
[1737984391475,0.00029821,100850.0,100840.0,0.14875]
[1737984391676,0.00029821,100850.0,100840.0,0.25708865]
[1737984391875,0.00029821,100850.0,100840.0,0.32347375]
[1737984393593,0.00029821,100850.0,100840.0,0.47347375]
[1737984393800,0.00029821,100850.0,100840.0,0.75578658]
[1737984394050,2e-08,100860.0,100850.0,0.03]
[1737984394266,0.01696488,100890.0,100870.0,0.01]
[1737984394470,0.01696488,100890.0,100880.0,0.24603829]
[1737984395022,0.01696488,100890.0,100880.0,0.148691]
[1737984395428,0.0171142,100890.0,100880.0,0.24702939]
[1737984395623,0.0171142,100890.0,100880.0,0.24603829]
[1737984395875,0.0171142,100890.0,100880.0,0.34338558]
[1737984396285,0.0171142,100890.0,100880.0,0.24603829]
[1737984396869,0.023,100880.0,100860.0,0.347005]
[1737984397115,0.198275,100870.0,100850.0,0.35210366]
[1737984397299,0.148735,100850.0,100840.0,0.21611446]
[1737984397437,0.347045,100860.0,100840.0,0.148738]
[1737984397648,0.346999,100870.0,100850.0,0.198314]
[1737984397860,0.148714,100870.0,100850.0,0.347026]
[1737984398079,0.346999,100870.0,100850.0,0.347026]
[1737984398470,0.19826,100880.0,100850.0,0.24607429]
[1737984398698,0.148706,100870.0,100860.0,0.148713]
[1737984398893,0.14872,100860.0,100850.0,0.02460743]
[1737984399095,0.148702,100880.0,100860.0,0.347003]
[1737984399372,0.5140392,100890.0,100870.0,0.346979]
[1737984399575,0.0171142,100890.0,100880.0,0.148691]
[1737984399784,0.0171142,100890.0,100880.0,0.22881024]
[1737984400011,0.0171142,100890.0,100880.0,0.22781913]
[1737984401251,0.0171142,100890.0,100880.0,0.32516642]
[1737984402603,0.0171142,100890.0,100880.0,0.47516642]
[1737984403794,0.0171142,100890.0,100880.0,0.50516642]
[1737984404999,2e-07,100890.0,100880.0,0.50516642]
[1737984405219,0.00029736,100940.0,100930.0,0.148617]
[1737984405420,0.00044666,100940.0,100930.0,0.1634787]
[1737984405605,0.00044666,100940.0,100930.0,0.1644693]
[1737984406033,0.00044666,100940.0,100930.0,0.26181659]
[1737984406393,0.00044666,100940.0,100930.0,0.73109389]
[1737984406599,0.00044666,100940.0,100930.0,0.7554956]
[1737984407234,0.00044666,100940.0,100930.0,0.80182797]
[1737984408274,0.0158275,100960.0,100950.0,0.148588]
[1737984408472,0.01632496,100960.0,100950.0,0.30241849]
[1737984409350,0.01632496,100960.0,100950.0,0.32023863]
[1737984409560,0.31489796,100960.0,100950.0,0.16640814]
[1737984409762,0.16632496,100960.0,100950.0,0.16640814]
[1737984410417,0.31489796,100960.0,100950.0,0.01782014]
[1737984410618,0.31489796,100960.0,100950.0,0.05427495]
[1737984410822,0.16489796,100960.0,100950.0,0.03645481]
[1737984411024,0.16489796,100960.0,100950.0,0.18504281]
[1737984411548,0.16489796,100960.0,100950.0,0.03645481]
[1737984411961,0.31489796,100960.0,100950.0,0.03645481]
[1737984412168,0.346729,100950.0,100930.0,0.3616207]
[1737984412373,0.148629,100930.0,100910.0,0.17697954]
[1737984412566,0.544954,100930.0,100910.0,0.37517454]
[1737984412778,0.15,100940.0,100910.0,0.47251283]
[1737984412977,0.148617,100930.0,100920.0,0.148628]
[1737984413213,0.694909,100940.0,100920.0,0.346792]
[1737984413416,0.694912,100940.0,100920.0,0.42588853]
[1737984413621,0.148617,100930.0,100920.0,0.07909653]
[1737984414020,0.346781,100930.0,100910.0,0.346826]
[1737984414159,0.148632,100920.0,100900.0,0.22653954]
[1737984414360,0.346821,100920.0,100910.0,0.148647]
[1737984414545,0.346821,100920.0,100900.0,0.57340154]
[1737984414546,0.148643,100920.0,100900.0,0.545062]
[1737984414751,0.346828,100920.0,100900.0,0.6318827]
[1737984415398,0.346828,100920.0,100900.0,0.433826]
[1737984415596,0.545015,100920.0,100900.0,0.63204]
[1737984415801,0.198139,100940.0,100920.0,0.198174]
[1737984416003,0.544904,100940.0,100920.0,0.37645021]
[1737984416209,0.544902,100940.0,100920.0,0.37645221]
[1737984416874,0.544902,100940.0,100920.0,0.57462821]
[1737984417070,0.346753,100940.0,100920.0,0.57462821]
[1737984417396,0.544899,100940.0,100920.0,0.57462821]
[1737984417616,0.148617,100930.0,100920.0,0.17827821]
[1737984417837,0.64224629,100940.0,100920.0,0.57462621]
[1737984418065,0.544857,100950.0,100930.0,0.346765]
[1737984418236,0.59509221,100960.0,100940.0,0.346731]
[1737984418627,0.05029821,100960.0,100950.0,0.148588]
[1737984419052,0.19887121,100960.0,100950.0,0.148588]
[1737984419255,0.1476455,100960.0,100930.0,0.39926032]
[1737984419467,0.171603,100940.0,100930.0,0.05250432]
[1737984419675,0.26895029,100940.0,100930.0,0.05250432]
[1737984419877,0.148603,100940.0,100930.0,0.20112132]
[1737984420070,0.396265,100950.0,100930.0,0.20112132]
[1737984420207,0.148603,100940.0,100930.0,0.05250432]
[1737984420412,0.49361029,100950.0,100930.0,0.20112132]
[1737984420620,0.6612215,100960.0,100940.0,0.34673]
[1737984420621,0.39748967,100960.0,100940.0,0.34673]
[1737984420821,0.39748767,100960.0,100940.0,0.40151513]
[1737984421019,0.19936867,100960.0,100940.0,0.69698742]
[1737984421225,0.148588,100950.0,100940.0,0.05478513]
[1737984421417,0.346759,100940.0,100920.0,0.544961]
[1737984421622,0.346759,100940.0,100930.0,0.148617]
[1737984421623,0.148603,100940.0,100930.0,0.148617]
[1737984422231,0.148617,100930.0,100920.0,0.346789]
[1737984422416,0.15,100930.0,100900.0,0.2354667]
[1737984422619,0.346857,100910.0,100890.0,0.0001417]
[1737984422827,0.346857,100910.0,100900.0,0.148662]
[1737984423028,0.64236029,100920.0,100900.0,0.148662]
[1737984423254,0.64236029,100920.0,100900.0,0.34786798]
[1737984423462,0.545044,100910.0,100890.0,0.3470367]
[1737984423695,0.545044,100910.0,100890.0,0.79802477]
[1737984423908,0.346843,100910.0,100890.0,0.59994007]
[1737984424117,0.545051,100910.0,100890.0,0.79816607]
[1737984424355,0.49374929,100910.0,100890.0,0.40171507]
[1737984424562,0.148662,100900.0,100890.0,0.05482007]
[1737984424971,0.24599529,100910.0,100900.0,0.148662]
[1737984425178,0.3571275,100930.0,100910.0,0.148641]
[1737984425424,0.148632,100920.0,100910.0,0.148647]
[1737984425632,0.5552945,100930.0,100910.0,0.346829]
[1737984425833,0.5552945,100930.0,100910.0,0.545015]
[1737984426033,0.1603305,100930.0,100920.0,0.148632]
[1737984426246,0.1589475,100930.0,100920.0,0.148632]
[1737984426392,0.544911,100940.0,100920.0,0.148632]
[1737984426595,0.64225829,100940.0,100920.0,0.346797]
[1737984426805,0.148617,100930.0,100920.0,0.148632]
[1737984427006,0.64225829,100940.0,100920.0,0.3963451]
[1737984427205,0.694907,100940.0,100920.0,0.5945121]
[1737984427523,0.694907,100940.0,100920.0,0.0495461]
[1737984427524,0.24596429,100930.0,100920.0,0.0495461]
[1737984427727,0.24596429,100930.0,100920.0,0.1981781]
[1737984427959,0.49676,100940.0,100930.0,0.148617]
[1737984428162,0.61710729,100940.0,100930.0,0.20311311]
[1737984428364,0.61710729,100940.0,100930.0,0.05449611]
[1737984428911,0.61710729,100940.0,100930.0,0.20311311]
[1737984429316,0.15,100940.0,100930.0,0.20311311]
[1737984429522,0.44651121,100960.0,100940.0,0.148603]
[1737984429729,0.05029821,100960.0,100950.0,0.148588]
[1737984429938,0.39698021,100960.0,100940.0,0.58002361]
[1737984430139,0.59508921,100960.0,100940.0,0.77814961]
[1737984430354,0.39698021,100960.0,100950.0,0.148588]
[1737984430559,0.39697821,100960.0,100940.0,0.58002361]
[1737984430937,0.39697821,100960.0,100940.0,0.77815061]
[1737984431139,0.39697821,100960.0,100940.0,0.77814961]
[1737984431285,0.59508521,100960.0,100940.0,0.58002361]
[1737984431489,0.148588,100950.0,100940.0,0.03517161]
[1737984431692,0.346779,100930.0,100910.0,0.36636104]
[1737984431899,0.346779,100930.0,100910.0,0.56455204]
[1737984432097,0.198157,100930.0,100910.0,0.36636504]
[1737984432301,0.148632,100920.0,100910.0,0.01954704]
[1737984432510,0.148632,100920.0,100910.0,0.18996154]
[1737984432990,0.544952,100930.0,100910.0,0.38815154]
[1737984433193,0.148632,100920.0,100910.0,0.04132154]
[1737984433320,0.41897929,100920.0,100910.0,0.01954704]
[1737984434544,0.47820929,100920.0,100910.0,0.01954704]
[1737984434749,0.148632,100920.0,100900.0,0.347853]
[1737984434952,0.148647,100910.0,100900.0,0.14866]
[1737984435129,0.148647,100910.0,100900.0,0.18336267]
[1737984435691,0.148647,100910.0,100900.0,0.03470267]
[1737984435932,0.346847,100910.0,100890.0,0.1983647]
[1737984436253,0.198202,100910.0,100890.0,0.347183]
[1737984436411,0.148662,100900.0,100890.0,0.000291]
[1737984436823,0.39600929,100900.0,100890.0,0.000291]
[1737984436999,0.298662,100900.0,100890.0,0.148967]
[1737984437202,0.298662,100900.0,100890.0,0.20699767]
[1737984437378,0.369861,100910.0,100900.0,0.148662]
[1737984437585,0.24774,100940.0,100910.0,0.198184]
[1737984437826,0.34678,100930.0,100910.0,0.545003]
[1737984438032,0.34678,100930.0,100920.0,0.148632]
[1737984438233,0.34678,100930.0,100920.0,0.2229507]
[1737984438438,0.148623,100930.0,100920.0,0.2229507]
[1737984439518,0.64225129,100940.0,100920.0,0.4211217]
[1737984439693,0.44410229,100940.0,100930.0,0.148617]
[1737984439922,0.24596229,100940.0,100930.0,0.148617]
[1737984440135,0.05029821,100960.0,100950.0,0.148588]
[1737984440349,0.05029821,100960.0,100950.0,0.24692572]
[1737984440555,0.05029821,100960.0,100950.0,0.50824812]
[1737984440772,0.05029821,100960.0,100950.0,0.24593529]
[1737984440999,0.04079567,100960.0,100950.0,0.34328258]
[1737984442010,0.04079567,100960.0,100950.0,0.35328258]
[1737984442865,0.00117567,100960.0,100950.0,0.78359541]
[1737984443080,0.00029758,100970.0,100960.0,0.178573]
[1737984443282,0.00029758,100980.0,100970.0,0.328558]
[1737984443502,0.00029821,101000.0,100990.0,0.148529]
[1737984443705,0.00044741,101000.0,100990.0,0.2468662]
[1737984443905,0.00044741,101000.0,100990.0,0.24587629]
[1737984445032,0.00044741,101000.0,100990.0,0.51818912]
[1737984445235,0.63629715,101020.0,101000.0,0.16]
[1737984445405,0.63629715,101020.0,101010.0,0.24683706]
[1737984445664,0.63629715,101020.0,101010.0,0.24584729]
[1737984446719,0.43830675,101020.0,101010.0,0.73446012]
[1737984446955,0.43830675,101020.0,101010.0,0.74856446]
[1737984447414,0.41794358,101020.0,101010.0,0.77156446]
[1737984447628,0.01552365,101030.0,101020.0,0.178485]
[1737984447841,0.01552365,101030.0,101020.0,0.2768218]
[1737984448077,0.01552365,101030.0,101020.0,0.37317958]
[1737984448288,0.01552365,101030.0,101020.0,0.63549241]
[1737984448487,0.01552365,101030.0,101020.0,0.65849241]
[1737984449018,0.01666667,101040.0,101030.0,0.203]
[1737984449226,0.00029736,101050.0,101040.0,0.57076883]
[1737984449428,0.00029736,101050.0,101040.0,0.75177473]
[1737984449429,0.00044651,101050.0,101040.0,0.75177473]
[1737984449859,0.00044651,101050.0,101040.0,0.74177473]
[1737984450060,0.00044651,101050.0,101040.0,0.4794619]
[1737984450935,0.00044651,101050.0,101040.0,0.75177473]
[1737984451717,0.00044651,101050.0,101040.0,0.3294619]
[1737984452120,0.00044651,101050.0,101040.0,0.34952086]
[1737984453355,0.00044651,101050.0,101040.0,0.3294619]
[1737984453555,0.14888751,101050.0,101040.0,0.1810059]
[1737984453758,0.14847,101030.0,101020.0,0.24583029]
[1737984453927,0.14847,101030.0,101020.0,0.24583229]
[1737984454128,0.34682851,101050.0,101030.0,0.346424]
[1737984454384,0.34682851,101050.0,101030.0,0.148466]
[1737984454587,0.34682851,101050.0,101030.0,0.49392685]
[1737984454937,0.54476251,101050.0,101030.0,0.49392685]
[1737984455140,0.54476451,101050.0,101030.0,0.49392685]
[1737984455684,0.14889851,101050.0,101040.0,0.148456]
[1737984455884,0.00044651,101050.0,101040.0,0.24679287]
[1737984456085,0.00044651,101050.0,101040.0,0.34315058]
[1737984456688,0.00044651,101050.0,101040.0,0.60546341]
[1737984456976,0.00044651,101050.0,101040.0,0.75546341]
[1737984457541,0.00044651,101050.0,101040.0,0.49315058]
[1737984459422,0.14888751,101050.0,101040.0,0.24580329]
[1737984459630,0.00044651,101050.0,101040.0,0.24580329]
[1737984460034,0.00044651,101050.0,101040.0,0.34315058]
[1737984461389,0.00044651,101050.0,101040.0,0.24580329]
[1737984461619,0.19837851,101050.0,101030.0,0.39558596]
[1737984461834,0.148456,101040.0,101030.0,0.39558596]
[1737984462048,0.00044651,101050.0,101040.0,0.148456]
[1737984462283,0.00044651,101050.0,101040.0,0.24679275]
[1737984462496,0.00044651,101050.0,101040.0,0.39580329]
[1737984462706,0.00044651,101050.0,101040.0,0.50315058]
[1737984463123,0.00039111,101050.0,101040.0,0.50315058]
[1737984463327,0.00029883,101070.0,101040.0,0.50315058]
[1737984463544,0.0007958,101070.0,101060.0,0.148426]
[1737984463753,0.0007958,101070.0,101060.0,0.24577329]
[1737984464184,0.0007958,101070.0,101060.0,0.40577329]
[1737984464605,0.0007958,101070.0,101060.0,0.42577329]
[1737984465033,0.0007958,101070.0,101060.0,0.44877329]
[1737984465244,0.0007958,101070.0,101060.0,0.80843341]
[1737984465452,0.0007958,101070.0,101060.0,0.91580294]
[1737984465841,0.0007958,101070.0,101060.0,0.89163341]
[1737984466048,0.0007958,101070.0,101060.0,0.88663341]
[1737984467091,0.0007958,101070.0,101060.0,0.49785088]
[1737984467308,0.0007958,101070.0,101060.0,0.48812058]
[1737984467736,0.0007958,101070.0,101050.0,0.346334]
[1737984467951,0.0007958,101070.0,101060.0,0.148426]
[1737984468188,0.1492068,101070.0,101060.0,0.148426]
[1737984468397,0.0007958,101070.0,101060.0,0.148426]
[1737984468832,0.0007958,101070.0,101060.0,0.24676264]
[1737984469048,0.0007958,101070.0,101060.0,0.34312058]
[1737984470989,0.00177862,101080.0,101070.0,0.1501152]
[1737984471184,0.00177862,101080.0,101070.0,0.24845168]
[1737984471393,0.00177862,101080.0,101070.0,0.24746249]
[1737984471767,0.65983574,101080.0,101070.0,0.0017042]
[1737984471969,0.80623574,101080.0,101070.0,0.0017042]
[1737984472420,0.78323574,101080.0,101070.0,0.0017042]
[1737984473001,0.27357562,101080.0,101070.0,0.0017042]
[1737984473156,0.15017562,101080.0,101070.0,0.0017042]
[1737984473992,0.65983574,101080.0,101070.0,0.0017042]
[1737984474799,0.68283574,101080.0,101070.0,0.0017042]
[1737984475921,0.81123574,101080.0,101070.0,0.0017042]
[1737984476734,0.91123574,101080.0,101070.0,0.0017042]
[1737984477485,0.81123574,101080.0,101070.0,0.0017042]
[1737984478028,0.63823574,101080.0,101070.0,0.0017042]
[1737984478352,0.78823574,101080.0,101070.0,0.0017042]
[1737984478968,0.81123574,101080.0,101070.0,0.0017042]
[1737984479580,0.70513574,101080.0,101070.0,0.0017042]
[1737984479791,0.30017562,101080.0,101070.0,0.0017042]
[1737984480414,0.30017562,101080.0,101070.0,0.1501152]
[1737984480622,0.30017562,101080.0,101070.0,0.07116656]
[1737984480828,0.30017562,101080.0,101070.0,0.0017042]
[1737984481458,0.65983574,101080.0,101070.0,0.0017042]
[1737984482482,0.65943382,101080.0,101070.0,0.0017042]
[1737984483529,0.65793382,101080.0,101070.0,0.0017042]
[1737984484565,0.71738382,101080.0,101070.0,0.0017042]
[1737984484771,0.65793382,101080.0,101070.0,0.0017042]
[1737984485186,0.68093382,101080.0,101070.0,0.0017042]
[1737984485808,0.75038382,101080.0,101070.0,0.0017042]
[1737984486025,1.22018382,101080.0,101070.0,0.0017042]
[1737984486969,0.439561,101070.0,101060.0,3.6e-07]
[1737984487192,0.53690829,101070.0,101060.0,3.6e-07]
[1737984487830,0.46745829,101070.0,101060.0,3.6e-07]
[1737984488031,0.39575829,101070.0,101060.0,3.6e-07]
[1737984488691,0.298411,101070.0,101060.0,0.14842636]
[1737984488892,0.298411,101070.0,101060.0,0.04957684]
[1737984489303,0.87590052,101080.0,101070.0,0.148411]
[1737984489304,0.36622869,101080.0,101070.0,0.148411]
[1737984489682,0.16835269,101080.0,101070.0,0.148411]
[1737984490101,0.298401,101080.0,101070.0,0.148411]
[1737984490356,0.298401,101080.0,101070.0,0.07421908]
[1737984490526,0.56071383,101080.0,101070.0,0.07421908]
[1737984490726,0.56085533,101080.0,101070.0,0.22263008]
[1737984490938,0.56085533,101080.0,101070.0,0.07421908]
[1737984491599,0.298411,101070.0,101060.0,3.6e-07]
[1737984491793,0.41875829,101070.0,101060.0,3.6e-07]
[1737984492404,0.96560829,101070.0,101060.0,3.6e-07]
[1737984493081,1.30640829,101070.0,101060.0,3.6e-07]
[1737984493281,1.35426287,101070.0,101060.0,3.6e-07]
[1737984493518,0.321441,101050.0,101040.0,0.00029736]
[1737984493700,0.68110112,101050.0,101040.0,0.00029736]
[1737984494451,0.65810112,101050.0,101040.0,0.00029736]
[1737984496221,0.148441,101050.0,101040.0,0.00029736]
[1737984496420,0.148441,101050.0,101040.0,0.14875336]
[1737984496623,0.395824,101060.0,101040.0,0.2190556]
[1737984496827,0.395824,101060.0,101050.0,0.148441]
[1737984496828,0.148426,101060.0,101050.0,0.148441]
[1737984497029,0.148441,101050.0,101040.0,0.14875336]
[1737984497645,0.54427,101060.0,101040.0,0.34668636]
[1737984497858,0.496352,101060.0,101050.0,0.148441]
[1737984498404,0.15,101060.0,101050.0,0.148441]
[1737984498688,0.80652083,101070.0,101050.0,0.61357284]
[1737984498895,0.90386812,101070.0,101050.0,0.61356784]
[1737984499245,0.60862783,101070.0,101050.0,0.71091213]
[1737984499456,0.60862783,101070.0,101050.0,0.61357584]
[1737984499655,0.80652383,101070.0,101050.0,0.41565484]
[1737984499858,0.148426,101060.0,101050.0,0.21774684]
[1737984500210,0.60862783,101070.0,101050.0,0.41565884]
[1737984500435,0.148426,101060.0,101050.0,0.21774684]
[1737984500639,0.148426,101060.0,101050.0,0.06930584]
[1737984501529,0.148441,101050.0,101040.0,0.00029736]
[1737984502365,0.56075383,101050.0,101040.0,0.00029736]
[1737984502554,0.65810112,101050.0,101040.0,0.00029736]
[1737984503549,0.68110112,101050.0,101040.0,0.00029736]
[1737984504814,0.58831201,101050.0,101040.0,0.00029736]
[1737984504947,0.75783573,101050.0,101040.0,0.00029736]
[1737984505144,0.58831201,101050.0,101040.0,0.00029736]
[1737984505415,0.75783573,101050.0,101040.0,0.00029736]
[1737984507063,0.56531201,101050.0,101040.0,0.00029736]
[1737984508009,0.41531201,101050.0,101040.0,0.00029736]
[1737984508232,0.148441,101050.0,101040.0,0.14875336]
[1737984508431,0.31796472,101050.0,101040.0,0.1784757]
[1737984508712,0.16952372,101050.0,101040.0,0.1784757]
[1737984509145,0.31796472,101050.0,101040.0,0.0300197]
[1737984509379,0.31796472,101050.0,101040.0,0.1784757]
[1737984509831,0.16952372,101050.0,101040.0,0.1784757]
[1737984510121,0.148441,101050.0,101040.0,0.1784757]
[1737984510362,0.31796472,101050.0,101040.0,0.0300197]
[1737984510617,0.56531201,101050.0,101040.0,0.00029736]
[1737984511112,0.75783573,101050.0,101040.0,0.00029736]
[1737984511355,0.80633573,101050.0,101040.0,0.00029736]
[1737984511617,1.14599604,101050.0,101040.0,0.00029736]
[1737984514071,0.83599604,101050.0,101040.0,0.00029736]
[1737984514313,0.61381201,101050.0,101040.0,0.00029736]
[1737984514810,0.58831201,101050.0,101040.0,0.00029736]
[1737984515089,0.56531201,101050.0,101040.0,0.00029736]
[1737984515320,0.87798654,101050.0,101040.0,0.00029736]
[1737984515577,0.89764685,101050.0,101040.0,0.00029736]
[1737984515816,0.86798654,101050.0,101040.0,0.00029736]
[1737984516066,0.59846282,101050.0,101040.0,0.00029736]
[1737984516308,0.76798654,101050.0,101040.0,0.00029736]
[1737984516983,1.07924414,101050.0,101040.0,0.00029736]
[1737984517199,1.01009112,101050.0,101040.0,3.6e-07]
[1737984518317,0.36756572,100990.0,100970.0,0.50846245]
[1737984518564,0.46806772,100980.0,100970.0,0.08574845]
[1737984518770,0.58841501,100980.0,100970.0,0.08624542]
[1737984518981,0.61807532,100980.0,100970.0,0.09484998]
[1737984519436,0.64626959,100980.0,100970.0,0.08624542]
[1737984519864,0.61660928,100980.0,100970.0,0.08624542]
[1737984520071,0.58841501,100980.0,100970.0,0.08624542]
[1737984520285,0.71416172,100990.0,100970.0,0.00049697]
[1737984520506,0.148544,100980.0,100970.0,0.14904997]
[1737984520717,0.148544,100980.0,100970.0,0.19169348]
[1737984521140,0.31806772,100980.0,100970.0,0.19169348]
[1737984521348,0.91221272,100990.0,100970.0,0.58783948]
[1737984521556,0.31645187,100980.0,100970.0,0.19169348]
[1737984521763,0.1,100980.0,100970.0,0.19169348]
[1737984521973,0.248544,100980.0,100970.0,0.19169348]
[1737984522184,0.41806772,100980.0,100970.0,0.19169348]
[1737984523967,0.1,100980.0,100970.0,0.19169348]
[1737984524392,0.1,100980.0,100970.0,0.29003099]
[1737984524611,0.1,100980.0,100970.0,0.28904077]
[1737984525903,0.0996,100980.0,100970.0,0.19169348]
[1737984526110,0.0996,100980.0,100970.0,0.19199084]
[1737984526553,0.26912372,100980.0,100970.0,0.19199084]
[1737984526754,0.0996,100980.0,100970.0,0.19199084]
[1737984527206,0.41766772,100980.0,100970.0,0.19199084]
[1737984527414,0.41766772,100980.0,100970.0,0.04343784]
[1737984527618,0.41766772,100980.0,100970.0,0.19199584]
[1737984528043,0.41766772,100980.0,100970.0,0.04343784]
[1737984528683,0.0996,100980.0,100970.0,0.19298614]
[1737984528862,0.0996,100980.0,100970.0,0.19199584]
[1737984529754,0.41766772,100980.0,100970.0,0.19199584]
[1737984531010,0.0996,100980.0,100970.0,0.19199584]
[1737984531211,0.0996,100980.0,100970.0,0.29033341]
[1737984531422,0.0996,100980.0,100970.0,0.36694313]
[1737984535555,0.0996,100980.0,100970.0,0.04343784]
[1737984535556,0.41766772,100980.0,100970.0,0.04343784]
[1737984535889,0.41766772,100980.0,100970.0,0.00079433]
[1737984536712,0.0996,100980.0,100970.0,0.14935233]
[1737984537306,0.0996,100980.0,100970.0,0.24669962]
[1737984538124,0.0997417,100980.0,100970.0,0.24669962]
[1737984538562,0.26926542,100980.0,100970.0,0.24669962]
[1737984538764,0.0997417,100980.0,100970.0,0.3258732]
[1737984540718,0.41780942,100980.0,100970.0,0.07996791]
[1737984541155,0.41780942,100980.0,100970.0,0.00079433]
[1737984541822,0.68815671,100980.0,100970.0,0.00079433]
[1737984542489,1.04373207,100980.0,100970.0,3.3e-07]
[1737984542698,0.99084235,100980.0,100970.0,3.3e-07]
[1737984542919,1.06884235,100980.0,100970.0,3.3e-07]
[1737984543146,1.06592591,100980.0,100970.0,3.3e-07]
[1737984543842,1.04107256,100980.0,100970.0,3.3e-07]
[1737984544045,1.06107256,100980.0,100970.0,3.3e-07]
[1737984544239,1.99341985,100980.0,100970.0,3.3e-07]
[1737984544468,1.99341985,100980.0,100960.0,4.8e-07]
[1737984544469,1.121808,100970.0,100960.0,4.8e-07]
[1737984544709,1.56659264,100970.0,100960.0,0.00014963]
[1737984544928,1.53839837,100970.0,100960.0,0.00014963]
[1737984545116,1.56659264,100970.0,100960.0,0.00014963]
[1737984545313,1.39706892,100970.0,100960.0,0.00014963]
[1737984545510,1.33922901,100970.0,100960.0,0.00014963]
[1737984546167,0.90922901,100970.0,100960.0,0.00014963]
[1737984546374,0.88622901,100970.0,100960.0,0.00014963]
[1737984546699,0.90922901,100970.0,100960.0,0.00014963]
[1737984548496,0.88622901,100970.0,100960.0,0.00014963]
[1737984548618,0.41479098,100970.0,100960.0,0.00014963]
[1737984549027,0.58779098,100970.0,100960.0,0.00014963]
[1737984551774,0.98779098,100970.0,100960.0,0.00014963]
[1737984552006,0.58779098,100970.0,100960.0,0.00014963]
[1737984552199,0.41826726,100970.0,100960.0,0.00014963]
[1737984554139,0.58779098,100970.0,100960.0,0.00014963]
[1737984555034,1.05724098,100970.0,100960.0,0.00014963]
[1737984555245,1.17328662,100970.0,100960.0,6.3e-07]
[1737984555452,0.77328662,100970.0,100960.0,6.3e-07]
[1737984555673,0.90139345,100960.0,100950.0,0.00029736]
[1737984555895,2.17454074,100960.0,100950.0,0.00044656]
[1737984556331,2.16454074,100960.0,100950.0,0.00044656]
[1737984556550,1.5981601,100960.0,100950.0,0.00044656]
[1737984556766,1.42863638,100960.0,100950.0,0.00044656]
[1737984556978,0.94365437,100960.0,100950.0,5.6e-07]
[1737984557442,0.75413065,100960.0,100950.0,5.6e-07]
[1737984557648,1.08413065,100960.0,100950.0,5.6e-07]
[1737984558729,1.18413065,100960.0,100950.0,5.6e-07]
[1737984558928,0.72593638,100960.0,100950.0,5.6e-07]
[1737984559136,1.12593638,100960.0,100950.0,5.6e-07]
[1737984559342,0.73593638,100960.0,100950.0,5.6e-07]
[1737984559551,0.70629074,100960.0,100950.0,5.6e-07]
[1737984559729,0.67648638,100960.0,100950.0,5.6e-07]
[1737984559941,1.05593638,100960.0,100950.0,5.6e-07]
[1737984560177,1.03593638,100960.0,100950.0,5.6e-07]
[1737984561140,1.05593638,100960.0,100950.0,5.6e-07]
[1737984561764,1.06595737,100960.0,100950.0,5.6e-07]
[1737984561965,1.04595737,100960.0,100950.0,0.00014226]
[1737984562165,1.06589788,100960.0,100950.0,0.00014226]
[1737984562705,0.94644788,100960.0,100950.0,0.00014226]
[1737984562880,0.86870224,100960.0,100950.0,0.00014226]
[1737984563073,1.01541262,100960.0,100950.0,0.00014226]
[1737984563592,0.99547211,100960.0,100950.0,0.00014226]
[1737984564214,1.14444583,100960.0,100950.0,0.00014226]
[1737984564419,1.20228574,100960.0,100950.0,2.6e-07]
[1737984564662,1.20228574,100960.0,100920.0,7.7e-07]
[1737984564663,0.728617,100930.0,100920.0,7.7e-07]
[1737984564877,0.728617,100930.0,100890.0,0.0001417]
[1737984564878,0.298662,100900.0,100890.0,0.0001417]
[1737984565113,0.298662,100900.0,100890.0,0.00063916]
[1737984565319,0.58853301,100900.0,100890.0,0.00063916]
[1737984565960,0.41900929,100900.0,100890.0,0.00063916]
[1737984566166,0.39600929,100900.0,100890.0,0.00063916]
[1737984568616,0.346812,100920.0,100910.0,0.148647]
[1737984568837,0.148635,100920.0,100910.0,0.1833323]
[1737984569063,0.148632,100920.0,100910.0,0.3815213]
[1737984569276,0.148632,100920.0,100910.0,0.1833323]
[1737984570263,0.148632,100920.0,100910.0,0.0346853]
[1737984570675,0.148632,100920.0,100910.0,0.1833323]
[1737984571457,0.148632,100920.0,100910.0,0.0346853]
[1737984571670,0.148632,100920.0,100910.0,0.1833323]
[1737984571853,0.49679,100930.0,100920.0,0.148632]
[1737984572056,0.59413729,100930.0,100920.0,0.05301463]
[1737984572890,0.79230729,100930.0,100910.0,0.5796953]
[1737984573098,0.99047729,100930.0,100910.0,0.5796953]
[1737984573295,0.79230429,100930.0,100910.0,0.5796953]
[1737984573499,0.59413729,100930.0,100910.0,0.579837]
[1737984573743,0.59413729,100930.0,100920.0,0.148632]
[1737984573951,0.59413729,100930.0,100920.0,0.2214789]
[1737984574162,0.39597629,100930.0,100920.0,0.2214789]
[1737984574706,0.39597629,100930.0,100920.0,0.148632]
[1737984574924,0.59413529,100930.0,100920.0,0.148632]
[1737984575125,0.59413529,100930.0,100920.0,0.07433257]
[1737984575992,0.59413529,100930.0,100920.0,0.22296457]
[1737984576199,0.39597629,100930.0,100920.0,0.22296457]
[1737984576672,0.40602281,100940.0,100920.0,0.22296457]
[1737984577005,0.40602281,100940.0,100920.0,0.346793]
[1737984577006,0.148603,100940.0,100920.0,0.346793]
[1737984577203,0.346749,100940.0,100920.0,0.544969]
[1737984577450,0.544857,100950.0,100930.0,0.346766]
[1737984577631,0.148603,100940.0,100920.0,0.54496]
[1737984577826,0.346742,100940.0,100930.0,0.148617]
[1737984578033,0.64220329,100950.0,100930.0,0.4161287]